fUST/lending_fUST_20240430
["ID","MTS","AMOUNT","RATE_DAILY","PERIOD"]
[324950042,1714459841730,-500.0,0.0003178,2]
[324950043,1714459841739,-500.0,0.0003178,2]
[324950044,1714459841748,-500.0,0.0003178,2]
[324950045,1714459841758,-500.0,0.0003178,2]
[324950046,1714459841768,-586.02,0.0003178,2]
[324950047,1714459841778,-500.0,0.0003178,2]
[324950048,1714459841787,-500.0,0.0003178,2]
[324950049,1714459841798,-500.0,0.0003178,2]
[324950050,1714459841807,-500.0,0.0003178,2]
[324950051,1714459841817,-500.0,0.0003178,2]
[324950052,1714459841827,-500.0,0.0003178,2]
[324950053,1714459841836,-500.0,0.0003178,2]
[324950054,1714459841846,-500.0,0.0003178,2]
[324950055,1714459841855,-500.0,0.0003178,2]
[324950056,1714459841864,-507.82,0.0003178,2]
[324950057,1714459841874,-217.46866619,0.0003178,2]
[324950058,1714459841883,-500.0,0.0003178,2]
[324950059,1714459841893,-521.5,0.0003178,2]
[324950060,1714459841903,-500.0,0.0003178,2]
[324950061,1714459841913,-500.0,0.0003178,2]
[324950062,1714459841922,-500.0,0.0003178,2]
[324950063,1714459841932,-500.0,0.0003178,2]
[324950064,1714459841941,-500.0,0.0003178,2]
[324950065,1714459841950,-500.0,0.0003178,2]
[324950066,1714459841960,-500.0,0.0003178,2]
[324950067,1714459841969,-500.0,0.0003178,2]
[324950068,1714459841979,-500.0,0.0003178,2]
[324950069,1714459841989,-500.0,0.0003178,2]
[324950070,1714459841999,-500.0,0.0003178,2]
[324950071,1714459842009,-500.0,0.0003178,2]
[324950072,1714459842020,-282.07927789,0.0003178,2]
[324950073,1714459842030,-500.0,0.0003178,2]
[324950074,1714459842039,-500.0,0.0003178,2]
[324950075,1714459842080,-500.0,0.0003178,2]
[324950076,1714459842089,-866.96,0.0003178,2]
[324950077,1714459842099,-787.59,0.0003178,2]
[324950078,1714459842108,-500.0,0.0003178,2]
[324950079,1714459842118,-500.0,0.0003178,2]
[324950080,1714459842130,-242.68815593,0.0003178,2]
[324950081,1714459842142,-500.0,0.0003178,2]
[324950082,1714459842151,-500.0,0.0003178,2]
[324950083,1714459842160,-779.17,0.0003178,2]
[324950084,1714459842170,-500.0,0.0003178,2]
[324950085,1714459842181,-500.0,0.0003178,2]
[324950086,1714459842190,-500.0,0.0003178,2]
[324950087,1714459842199,-500.0,0.0003178,2]
[324950088,1714459842209,-507.37426636,0.0003178,2]
[324950089,1714459842218,-500.0,0.0003178,2]
[324950090,1714459842227,-500.0,0.0003178,2]
[324950091,1714459842236,-500.0,0.0003178,2]
[324950092,1714459842244,-761.61,0.0003178,2]
[324950093,1714459842254,-641.62,0.0003178,2]
[324950094,1714459842263,-524.63607725,0.0003178,2]
[324950095,1714459842273,-500.0,0.0003178,2]
[324950096,1714459842283,-500.0,0.0003178,2]
[324950097,1714459842291,-525.96,0.0003178,2]
[324950098,1714459842301,-500.0,0.0003178,2]
[324950099,1714459842311,-500.0,0.0003178,2]
[324950100,1714459842319,-500.0,0.0003178,2]
[324950101,1714459842328,-501.63257989,0.0003178,2]
[324950102,1714459842337,-500.0,0.0003178,2]
[324950103,1714459842346,-500.0,0.0003178,2]
[324950104,1714459842355,-500.88982496,0.0003178,2]
[324950105,1714459842364,-500.0,0.0003178,2]
[324950106,1714459842373,-500.0,0.0003178,2]
[324950107,1714459842383,-500.0,0.0003178,30]
[324950108,1714459842391,-500.0,0.0003178,2]
[324950109,1714459842401,-503.75589433,0.0003178,2]
[324950110,1714459842410,-500.0,0.0003178,2]
[324950111,1714459842419,-500.0,0.0003178,2]
[324950112,1714459842428,-500.0,0.0003178,2]
[324950113,1714459842437,-486.09670969,0.0003178,2]
[324950114,1714459842446,-500.0,0.0003178,2]
[324950115,1714459842456,-500.0,0.0003178,2]
[324950116,1714459842465,-500.0,0.0003178,2]
[324950117,1714459842475,-500.248813,0.0003178,2]
[324950118,1714459842484,-500.0,0.0003178,2]
[324950119,1714459842493,-500.0,0.0003178,2]
[324950120,1714459842503,-500.0,0.0003178,2]
[324950121,1714459842512,-500.0,0.0003178,2]
[324950122,1714459842522,-609.77454068,0.0003178,2]
[324950123,1714459842531,-549.04,0.0003178,2]
[324950124,1714459842540,-500.0,0.0003178,2]
[324950125,1714459842549,-505.9943156,0.0003178,2]
[324950126,1714459842558,-500.0,0.0003178,2]
[324950127,1714459842567,-500.0,0.0003178,2]
[324950128,1714459842576,-500.0,0.0003178,2]
[324950129,1714459842585,-500.0,0.0003178,2]
[324950130,1714459842594,-500.0,0.0003178,2]
[324950131,1714459842603,-560.7,0.0003178,2]
[324950132,1714459842614,-500.0,0.0003178,2]
[324950133,1714459842623,-500.0,0.0003178,2]
[324950134,1714459842633,-500.0,0.0003178,2]
[324950135,1714459842642,-500.0,0.0003178,2]
[324950136,1714459842651,-530.82868548,0.0003178,2]
[324950137,1714459842660,-500.0,0.0003178,2]
[324950138,1714459842669,-500.0,0.0003178,2]
[324950139,1714459842679,-500.0,0.0003178,2]
[324950140,1714459842688,-500.0,0.0003178,2]
[324950141,1714459842698,-572.25,0.0003178,2]
[324950142,1714459842707,-500.0,0.0003178,2]
[324950143,1714459842717,-500.0,0.0003178,2]
[324950144,1714459842726,-707.35,0.0003178,2]
[324950145,1714459842736,-500.0,0.0003178,2]
[324950146,1714459842745,-694.65,0.0003178,2]
[324950147,1714459842754,-500.0,0.0003178,2]
[324950148,1714459842764,-500.0,0.0003178,2]
[324950149,1714459842775,-274.15130659,0.0003178,2]
[324950150,1714459842785,-943.58,0.0003178,2]
[324950151,1714459842794,-500.0,0.0003178,2]
[324950152,1714459842804,-500.0,0.0003178,2]
[324950153,1714459842813,-500.0,0.0003178,2]
[324950154,1714459842822,-500.0,0.0003178,2]
[324950155,1714459842831,-612.46,0.0003178,2]
[324950156,1714459842840,-300.0,0.0003178,2]
[324950157,1714459842850,-1576.45,0.0003178,2]
[324950158,1714459842859,-500.0,0.0003178,2]
[324950159,1714459842868,-500.0,0.0003178,2]
[324950160,1714459842877,-500.0,0.0003178,2]
[324950161,1714459842886,-869.6,0.0003178,2]
[324950162,1714459842895,-500.0,0.0003178,2]
[324950163,1714459842905,-596.89857871,0.0003178,2]
[324950164,1714459842914,-500.0,0.0003178,2]
[324950165,1714459842923,-500.0,0.0003178,2]
[324950166,1714459842932,-500.0,0.0003178,2]
[324950167,1714459842942,-500.0,0.0003178,2]
[324950168,1714459842951,-500.0,0.0003178,2]
[324950169,1714459842961,-500.0,0.0003178,2]
[324950170,1714459842970,-500.0,0.0003178,2]
[324950171,1714459842980,-500.88093415,0.0003178,2]
[324950172,1714459842989,-500.0,0.0003178,2]
[324950173,1714459842998,-500.0,0.0003178,2]
[324950174,1714459843007,-500.0,0.0003178,2]
[324950175,1714459843018,-500.0,0.0003178,2]
[324950176,1714459843027,-799.36,0.0003178,2]
[324950177,1714459843036,-500.0,0.0003178,2]
[324950178,1714459843045,-563.34,0.0003178,2]
[324950179,1714459843055,-304.2153024,0.0003178,2]
[324950180,1714459843064,-500.0,0.0003178,2]
[324950181,1714459843074,-500.0,0.0003178,2]
[324950182,1714459843083,-500.0,0.0003178,2]
[324950183,1714459843093,-500.0,0.0003178,2]
[324950184,1714459843103,-500.0,0.0003178,2]
[324950185,1714459843112,-500.0,0.0003178,2]
[324950186,1714459843121,-500.0,0.0003178,2]
[324950187,1714459843133,-500.0,0.0003178,2]
[324950188,1714459843144,-500.0,0.0003178,2]
[324950189,1714459843154,-294.99521183,0.0003178,2]
[324950190,1714459843164,-500.0,0.0003178,2]
[324950191,1714459843174,-500.0,0.0003178,2]
[324950192,1714459843186,-500.0,0.0003178,2]
[324950193,1714459843196,-500.0,0.0003178,2]
[324950194,1714459843206,-526.48,0.0003178,2]
[324950195,1714459843216,-677.5,0.0003178,2]
[324950196,1714459843226,-500.0,0.0003178,2]
[324950197,1714459843235,-500.0,0.0003178,2]
[324950198,1714459843245,-500.0,0.0003178,2]
[324950199,1714459843254,-500.0,0.0003178,2]
[324950200,1714459843263,-786.26,0.0003178,2]
[324950201,1714459843276,-500.0,0.0003178,2]
[324950202,1714459843286,-500.0,0.0003178,2]
[324950203,1714459843295,-500.0,0.0003178,2]
[324950204,1714459843305,-815.27,0.0003178,2]
[324950205,1714459843314,-500.0,0.0003178,2]
[324950206,1714459843323,-500.0,0.0003178,2]
[324950207,1714459843332,-500.0,0.0003178,2]
[324950208,1714459843341,-500.0,0.0003178,2]
[324950209,1714459843350,-500.0,0.0003178,2]
[324950210,1714459843359,-6886.09,0.0003178,2]
[324950211,1714459843368,-500.0,0.0003178,2]
[324950212,1714459843378,-500.0,0.0003178,2]
[324950213,1714459843387,-500.0,0.0003178,2]
[324950214,1714459843396,-500.0,0.0003178,2]
[324950215,1714459843405,-500.0,0.0003178,2]
[324950216,1714459843414,-500.0,0.0003178,2]
[324950217,1714459843423,-500.0,0.0003178,2]
[324950218,1714459843432,-500.0,0.0003178,2]
[324950219,1714459843442,-541.70663019,0.0003178,2]
[324950220,1714459843451,-500.0,0.0003178,2]
[324950221,1714459843460,-500.0,0.0003178,2]
[324950222,1714459843469,-500.0,0.0003178,2]
[324950223,1714459843478,-509.17,0.0003178,2]
[324950224,1714459843488,-500.0,0.0003178,2]
[324950225,1714459843497,-500.0,0.0003178,2]
[324950226,1714459843506,-500.0,0.0003178,2]
[324950228,1714459843516,-186.49936577,0.0003178,2]
[324950229,1714459843527,-500.0,0.0003178,2]
[324950231,1714459843536,-1116.05,0.0003178,2]
[324950234,1714459843545,-500.0,0.0003178,2]
[324950236,1714459843554,-550.8,0.0003178,2]
[324950238,1714459843563,-500.0,0.0003178,2]
[324950240,1714459843573,-500.0,0.0003178,2]
[324950241,1714459843582,-500.0,0.0003178,2]
[324950243,1714459843592,-500.0,0.0003178,2]
[324950245,1714459843601,-501.14246556,0.0003178,2]
[324950247,1714459843611,-500.0,0.0003178,2]
[324950249,1714459843620,-500.0,0.0003178,2]
[324950250,1714459843629,-500.0,0.0003178,2]
[324950252,1714459843638,-694.44,0.0003178,2]
[324950253,1714459843648,-500.0,0.0003178,2]
[324950254,1714459843657,-500.0,0.0003178,2]
[324950255,1714459843666,-500.0,0.0003178,2]
[324950256,1714459843675,-500.0,0.0003178,2]
[324950257,1714459843685,-609.32,0.0003178,2]
[324950258,1714459843695,-500.0,0.0003178,2]
[324950259,1714459843704,-615.24,0.0003178,2]
[324950260,1714459843714,-500.0,0.0003178,2]
[324950261,1714459843723,-500.0,0.0003178,2]
[324950262,1714459843732,-500.0,0.0003178,2]
[324950263,1714459843742,-647.15544297,0.0003178,2]
[324950264,1714459843751,-500.0,0.0003178,2]
[324950265,1714459843760,-1295.95,0.0003178,2]
[324950266,1714459843772,-500.0,0.0003178,2]
[324950267,1714459843782,-150.0,0.00031875,2]
[324950269,1714459843792,-155.21372883,0.00031967,7]
[324950270,1714459843801,-447.17087694,0.00032,4]
[324950272,1714459843811,-6473.0,0.00032,10]
[324950274,1714459843820,-1000.0,0.00032,8]
[324950276,1714459843830,-1220.27549495,0.00032,3]
[324950277,1714459843840,-177.0,0.00032,5]
[324950279,1714459843849,-31015.61966486,0.00032052,7]
[324950281,1714459843859,-500.0,0.00032052,10]
[324950283,1714459843868,-500.0,0.00032052,10]
[324950285,1714459843877,-254.21453462,0.00032052,10]
[324950286,1714459843886,-153.40602022,0.00032052,2]
[324950288,1714459843896,-500.0,0.00032052,10]
[324950289,1714459843905,-399006.66351049,0.00032052,15]
[324950305,1714459844304,-1381.82161256,0.00014076,2]
[324950314,1714459844716,154.87812226,9.999e-05,2]
[324950324,1714459846567,155.37033946,9.999e-05,2]
[324950374,1714459847056,-709.24712561,0.00014076,2]
[324950422,1714459849239,229.02313117,9.999e-05,2]
[324950423,1714459852667,154.95448489,9.999e-05,2]
[324950424,1714459852780,211.92467003,9.999e-05,2]
[324950425,1714459858146,193.21743915,9.999e-05,2]
[324950426,1714459920801,415.06517395,9.999e-05,2]
[324950430,1714460045603,196.34286714,9.999e-05,2]
[324950433,1714460340470,-5850.20512949,0.00032031,30]
[324950434,1714460348253,-150.5,0.0003175,35]
[324950435,1714460348279,-535.0,0.0003175,35]
[324950436,1714460348309,-150.5,0.0003176,35]
[324950437,1714460348337,-535.0,0.0003176,35]
[324950438,1714460348366,-150.5,0.0003177,35]
[324950439,1714460348393,-179.35,0.0003177,35]
[324950440,1714460348421,-535.0,0.0003177,35]
[324950441,1714460348450,-168.19,0.0003177,35]
[324950442,1714460348495,-500.0,0.00032054,30]
[324950443,1714460348547,-500.0,0.00032328,30]
[324950444,1714460348597,-500.0,0.00032602,30]
[324950445,1714460348639,-1206.43163887,0.00032768,30]
[324950446,1714460348664,-209.39,0.0003277,35]
[324950447,1714460348691,-535.0,0.0003277,35]
[324950448,1714460348716,-150.5,0.0003278,35]
[324950449,1714460348742,-535.0,0.0003278,35]
[324950450,1714460348767,-150.5,0.0003279,35]
[324950451,1714460348793,-535.0,0.0003279,35]
[324950452,1714460348819,-1381.82161256,0.00032876,30]
[324950453,1714460348845,-500.0,0.00032876,30]
[324950454,1714460348887,-500.0,0.0003315,30]
[324950455,1714460348924,-500.0,0.00033424,30]
[324950456,1714460348962,-500.0,0.00033698,30]
[324950457,1714460348997,-502.52268013,0.000338,60]
[324950458,1714460349022,-500.0,0.00033972,30]
[324950459,1714460349056,-17657.66347292,0.00034,60]
[324950460,1714460349083,-500.0,0.00034246,30]
[324950461,1714460349117,-500.0,0.0003452,30]
[324950462,1714460349154,-152.95,0.00034616,120]
[324950463,1714460349179,-475.60935481,0.00034794,30]
[324950464,1714460349213,-535.0,0.0003486,35]
[324950465,1714460349238,-535.0,0.0003487,35]
[324950466,1714460349263,-500.0,0.00034904,30]
[324950467,1714460349289,-232.56323818,0.00034904,30]
[324950468,1714460349317,-849.10028097,0.00035,30]
[324950469,1714460349341,-169.28788133,0.00035,30]
[324950470,1714460349367,-474.82,0.00035,30]
[324950471,1714460349402,-150.5,0.00035312,35]
[324950472,1714460349425,-150.5,0.00035322,35]
[324950473,1714460349449,-150.5,0.00035332,35]
[324950474,1714460349478,-500.0,0.00035616,30]
[324950475,1714460349500,-500.0,0.00035616,30]
[324950476,1714460349739,-500.0,0.00035616,30]
[324950477,1714460349761,-500.0,0.00035616,30]
[324950478,1714460349783,-500.0,0.00035616,30]
[324950479,1714460349806,-606.29695031,0.00035616,30]
[324950480,1714460349833,-1765.986201,0.00035616,120]
[324950481,1714460349866,-200.0,0.00036316,120]
[324950482,1714460349900,-280.17,0.00037,120]
[324950483,1714460349926,-150.0,0.000375,32]
[324950484,1714460349954,-1992.22023665,0.00038,30]
[324950485,1714460349976,-1000.0,0.00038,120]
[324950486,1714460349998,-221.47342553,0.00038,30]
[324950487,1714460350024,-209.34,0.0003918,35]
[324950488,1714460350047,-539.27,0.0003918,35]
[324950489,1714460350069,-150.5,0.0003919,35]
[324950490,1714460350092,-535.0,0.0003919,35]
[324950491,1714460350115,-999.0,0.00039397,30]
[324950492,1714460350137,-999.0,0.00039397,30]
[324950493,1714460350159,-999.0,0.00039397,30]
[324950494,1714460350182,-999.0,0.00039397,30]
[324950495,1714460350204,-999.0,0.00039397,30]
[324950496,1714460350227,-999.0,0.00039397,30]
[324950497,1714460350249,-999.0,0.00039397,30]
[324950498,1714460350271,-999.0,0.00039397,30]
[324950499,1714460350294,-999.0,0.00039397,30]
[324950500,1714460350316,-993.06242416,0.00039397,30]
[324950501,1714460350341,-200.0,0.00039527,120]
[324950502,1714460350362,-1494.73310979,0.0004,30]
[324950503,1714460350384,-273.71004553,0.0004,120]
[324950504,1714460350406,-10000.0,0.0004,30]
[324950505,1714460350429,-1012.0,0.0004,120]
[324950506,1714460350451,-200130.03094831,0.0004,120]
[324950507,1714460350475,-155.21372883,0.00040118,30]
[324950508,1714460350497,-157.73975448,0.00040478,30]
[324950509,1714460350519,-152.79752245,0.00040538,30]
[324950510,1714460350540,-153.89214861,0.00040672,30]
[324950511,1714460350562,-362.7746158,0.00040819,30]
[324950512,1714460350583,-152.90057792,0.00040882,30]
[324950513,1714460350605,-152.79752245,0.00040899,30]
[324950514,1714460350627,-5018.0,0.00041,120]
[324950515,1714460350651,-200.0,0.00041073,120]
[324950516,1714460350673,-157.73975458,0.00041073,30]
[324950517,1714460350697,-500.0,0.00041096,31]
[324950518,1714460350720,-358.53248749,0.00041096,31]
[324950519,1714460350742,-500.0,0.00041096,31]
[324950520,1714460350764,-500.0,0.00041096,31]
[324950521,1714460350786,-500.0,0.00041096,31]
[324950522,1714460350808,-169.90913747,0.00041096,31]
[324950523,1714460350831,-500.0,0.00041096,31]
[324950524,1714460350853,-500.0,0.00041096,31]
[324950525,1714460350875,-500.0,0.00041096,31]
[324950526,1714460350897,-500.0,0.00041096,31]
[324950527,1714460350920,-155.21372883,0.00041117,30]
[324950528,1714460350944,-152.79752245,0.00041147,30]
[324950529,1714460350966,-155.21372883,0.0004121,30]
[324950530,1714460350988,-1765.986201,0.00041553,120]
[324950531,1714460351012,-155.21372883,0.0004157,30]
[324950532,1714460351034,-500.0,0.00041643,30]
[324950533,1714460351057,-254.21453462,0.00041643,30]
[324950534,1714460351081,-10014.09202644,0.0004165,120]
[324950535,1714460351107,-645.8,0.00041847,30]
[324950536,1714460351132,-2188.82418317,0.0004188,30]
[324950537,1714460351154,-362.7746158,0.00041902,30]
[324950538,1714460351182,-1000.0,0.00042,120]
[324950539,1714460351205,-3518.34976156,0.00042,120]
[324950540,1714460351228,-152.79752245,0.00042121,30]
[324950541,1714460351251,-362.7746158,0.00042235,30]
[324950542,1714460351274,-415.0,0.00042288,90]
[324950543,1714460351300,-200.0,0.00042695,120]
[324950544,1714460351324,-98920.15707909,0.000429,60]
[324950545,1714460358763,-93383.27497913,0.000429,60]
[324950546,1714460358787,-500.0,0.000429,42]
[324950547,1714460358813,-500.0,0.000429,42]
[324950548,1714460358839,-155.21372883,0.00042999,30]
[324950549,1714460358863,-68102.0,0.00043,120]
[324950550,1714460358886,-5011.14003884,0.00043,120]
[324950551,1714460358910,-200.0,0.00043022,120]
[324950552,1714460359074,-362.7746158,0.00043069,30]
[324950553,1714460359098,-152.79752245,0.00043074,30]
[324950554,1714460359122,-362.77461602,0.00043123,30]
[324950555,1714460359146,-152.79752246,0.00043147,30]
[324950556,1714460359170,-200.0,0.00043191,120]
[324950557,1714460359194,-155.21372883,0.00043254,30]
[324950558,1714460359218,-200.0,0.00043376,120]
[324950559,1714460359242,-645.8,0.00043514,30]
[324950560,1714460359265,-153.89214861,0.00043523,30]
[324950561,1714460359289,-200.0,0.00043633,120]
[324950562,1714460359318,-152.90057794,0.00043715,30]
[324950563,1714460359343,-229409.42052109,0.00043757,90]
[324950564,1714460362736,154.81422293,9.999e-05,2]
[324950565,1714460363317,-400000.0,0.00043757,90]
[324950566,1714460374977,-7535.70604666,0.00035,30]
[324950567,1714460375048,-239.19602788,0.00038,30]
[324950568,1714460375081,-1495.05719491,0.0004,30]
[324950569,1714460375110,-390730.04073055,0.00043757,90]
[324950572,1714460805243,154.81422293,9.999e-05,2]
[324950591,1714460949203,-151.23746338,0.00013,2]
[324950615,1714461032124,-3.78394315,0.00013,2]
[324950616,1714461032134,-154.81422293,0.00014073,2]
[324950617,1714461032143,-497.39509606,0.00014074,2]
[324950618,1714461032153,-168.563871,0.00014215,2]
[324950620,1714461032162,-300.0,0.00014304,2]
[324950622,1714461032171,-228.44373895,0.00014305,2]
[324950897,1714461039706,-1089.17436889,0.00014305,2]
[324950901,1714461039717,-14357.00893364,0.00014305,2]
[324950905,1714461039727,-3139.4544659,0.00014306,2]
[324950909,1714461039737,-24900.0,0.00014306,2]
[324950912,1714461039746,-1228.407801,0.00014448,2]
[324950915,1714461039755,-2392.43546351,0.00015,2]
[324950918,1714461039764,-2101.40475036,0.00015,2]
[324950921,1714461039773,-420.0,0.00015735,2]
[324950923,1714461039782,-514.30635662,0.00016,2]
[324950926,1714461039791,-2806.60876212,0.00016076,2]
[324950930,1714461039801,-1677.62779446,0.00016076,2]
[324950933,1714461039810,-184.22287627,0.00016077,2]
[324950936,1714461039821,-587.0,0.00017308,2]
[324950939,1714461039831,-603.84859883,0.000185,2]
[324950941,1714461039840,-823.0,0.00019039,2]
[324950942,1714461039849,-500.0,0.00019178,2]
[324950944,1714461039859,-500.0,0.00019178,2]
[324950946,1714461039869,-500.0,0.00019178,2]
[324950948,1714461039878,-500.0,0.00019178,2]
[324950950,1714461039887,-500.0,0.00019178,2]
[324950952,1714461039895,-500.0,0.00019178,2]
[324950954,1714461039904,-500.0,0.00019178,2]
[324950956,1714461039914,-500.0,0.00019178,2]
[324950958,1714461039923,-500.0,0.00019178,2]
[324950960,1714461039932,-500.0,0.00019178,2]
[324950962,1714461039941,-500.0,0.00019178,2]
[324950964,1714461039950,-500.0,0.00019178,2]
[324950966,1714461039959,-500.0,0.00019178,2]
[324950968,1714461039968,-500.0,0.00019178,2]
[324950970,1714461039979,-500.0,0.00019178,2]
[324950972,1714461039988,-500.0,0.00019178,2]
[324950974,1714461039997,-500.0,0.00019178,2]
[324950976,1714461040007,-500.0,0.00019178,2]
[324950978,1714461040017,-500.0,0.00019178,2]
[324950980,1714461040026,-500.0,0.00019178,2]
[324950982,1714461040035,-500.0,0.00019178,2]
[324950984,1714461040044,-500.0,0.00019178,2]
[324950986,1714461040053,-500.0,0.00019178,2]
[324950988,1714461040062,-500.0,0.00019178,2]
[324950990,1714461040072,-500.0,0.00019178,2]
[324950992,1714461040081,-500.0,0.00019178,2]
[324950994,1714461040090,-500.0,0.00019178,2]
[324950996,1714461040099,-556.61968578,0.00019178,2]
[324950998,1714461040108,-500.0,0.00019178,2]
[324951000,1714461040118,-500.0,0.00019178,2]
[324951002,1714461040127,-160.375409,0.00019178,2]
[324951004,1714461040136,-468.13032553,0.000199,2]
[324951006,1714461040145,-607.67,0.0001999,3]
[324951008,1714461040155,-155.42061847,0.0002,2]
[324951010,1714461040164,-3971.43528255,0.0002,10]
[324951012,1714461040173,-67426.19859378,0.0002,2]
[324951014,1714461040182,-241.71320654,0.0002,2]
[324951016,1714461040192,-10481.54893926,0.0002,2]
[324951017,1714461040201,-80000.0,0.0002,2]
[324951019,1714461040210,-329.99389325,0.0002,2]
[324951021,1714461040219,-154.81422293,0.0002,2]
[324951024,1714461040229,-10108.60426596,0.0002,2]
[324951026,1714461040238,-200.0,0.0002,2]
[324951028,1714461040248,-1152.0,0.00020943,2]
[324951030,1714461040257,-1228.407801,0.00021672,2]
[324951031,1714461040266,-468.13032551,0.00021834,2]
[324951033,1714461040277,-10000.0,0.00021918,2]
[324951035,1714461040286,-305.6041892,0.00022,2]
[324951037,1714461040295,-523.09516754,0.000223,2]
[324951039,1714461040305,-450.309945,0.00022466,2]
[324951041,1714461040315,-654.502225,0.00022466,2]
[324951043,1714461040324,-1370.77204514,0.00023,2]
[324951045,1714461040334,-1613.0,0.00023037,2]
[324951048,1714461040343,-468.13032551,0.00023768,2]
[324951050,1714461040353,-693.45686249,0.00024,2]
[324951052,1714461040363,-500.0,0.00024657,2]
[324951054,1714461040372,-500.0,0.00024657,2]
[324951056,1714461040381,-380.0,0.00024658,2]
[324951058,1714461040390,-200.0,0.00024658,15]
[324951060,1714461040399,-200.0,0.00024658,2]
[324951062,1714461040408,-500.0,0.00024712,2]
[324951063,1714461040417,-155.21372883,0.00024765,2]
[324951066,1714461040426,-500.0,0.00024767,2]
[324951068,1714461040437,-500.0,0.00024821,2]
[324951070,1714461040447,-500.0,0.00024876,2]
[324951072,1714461040458,-500.0,0.00024931,2]
[324951073,1714461040468,-500.0,0.00024986,2]
[324951075,1714461040478,-4725.27724684,0.00025,2]
[324951077,1714461040488,-154.81422293,0.00025,2]
[324951080,1714461040498,-155.0785368,0.00025,2]
[324951081,1714461040510,-154.81422293,0.00025,2]
[324951084,1714461040519,-154.81422293,0.00025,2]
[324951086,1714461040529,-1836.20001103,0.00025,2]
[324951088,1714461040538,-1016.69173145,0.00025,2]
[324951089,1714461040547,-500.0,0.00025041,2]
[324951091,1714461040556,-155.21372883,0.00025046,2]
[324951092,1714461040565,-500.0,0.00025095,2]
[324951093,1714461040576,-157.73975448,0.00025149,2]
[324951094,1714461040587,-500.0,0.0002515,2]
[324951095,1714461040596,-500.0,0.00025205,2]
[324951096,1714461040605,-500.0,0.0002526,2]
[324951098,1714461040614,-500.0,0.00025315,2]
[324951100,1714461040623,-2258.0,0.00025341,2]
[324951103,1714461040633,-1193.87825916,0.00025369,2]
[324951104,1714461040642,-500.0,0.00025369,2]
[324951106,1714461040651,-152.79752245,0.00025406,2]
[324951108,1714461040660,-500.0,0.00025424,2]
[324951110,1714461040669,-500.0,0.00025479,2]
[324951112,1714461040678,-500.0,0.00025534,2]
[324951114,1714461040688,-362.7746158,0.00025578,2]
[324951116,1714461040697,-500.0,0.00025589,2]
[324951118,1714461040706,-500.0,0.00025643,2]
[324951120,1714461040716,-500.0,0.00025698,2]
[324951122,1714461040726,-468.13032551,0.00025701,2]
[324951124,1714461040737,-500.0,0.00025753,2]
[324951126,1714461040747,-500.0,0.00025808,2]
[324951128,1714461040756,-500.0,0.00025863,2]
[324951130,1714461040766,-206.56888876,0.00025917,2]
[324951132,1714461040775,-2822.94323981,0.00026,9]
[324951134,1714461040784,-4466.35,0.00026,2]
[324951136,1714461040793,-11121.55796347,0.00026,2]
[324951138,1714461040803,-362.7746158,0.00026014,2]
[324951140,1714461040811,-362.7746158,0.00026071,2]